fUSD/lending_fUSD_20240116
["ID","MTS","AMOUNT","RATE_DAILY","PERIOD"]
[311777014,1705385453640,-500.0,0.00022421,2]
[311777015,1705385453649,-500.0,0.00022421,2]
[311777016,1705385453659,-1359.25,0.00022421,2]
[311777017,1705385453670,-501.48,0.00022421,2]
[311777018,1705385453679,-2121.51,0.00022421,2]
[311777019,1705385453689,-3383.03,0.00022421,2]
[311777020,1705385453698,-800.77,0.00022421,2]
[311777021,1705385453708,-519.34581684,0.00022421,2]
[311777022,1705385453717,-964.39,0.00022421,2]
[311777023,1705385453726,-521.45333036,0.00022421,2]
[311777024,1705385453738,-500.0,0.00022421,2]
[311777025,1705385453749,-854.28,0.00022421,2]
[311777026,1705385453760,-500.0,0.00022421,2]
[311777027,1705385453771,-512.49917106,0.00022421,2]
[311777028,1705385453781,-516.90238902,0.00022421,2]
[311777029,1705385453790,-850.03,0.00022421,2]
[311777030,1705385453799,-500.0,0.00022421,2]
[311777031,1705385453809,-500.0,0.00022421,2]
[311777032,1705385453820,-2424.49,0.00022421,2]
[311777033,1705385453829,-813.63,0.00022421,2]
[311777034,1705385453838,-4030.76,0.00022421,2]
[311777035,1705385453849,-566.46,0.00022421,2]
[311777036,1705385453858,-500.0,0.00022421,2]
[311777037,1705385453867,-500.0,0.00022421,2]
[311777038,1705385453877,-1029.45,0.00022421,2]
[311777039,1705385453886,-500.0,0.00022421,2]
[311777040,1705385453895,-500.0,0.00022421,2]
[311777041,1705385453904,-544.16,0.00022421,2]
[311777042,1705385453913,-524.82,0.00022421,2]
[311777043,1705385453923,-591.08,0.00022421,2]
[311777044,1705385453933,-6788.08,0.00022421,2]
[311777045,1705385453942,-509.7,0.00022421,2]
[311777046,1705385453952,-6763.29,0.00022421,2]
[311777047,1705385453963,-500.0,0.00022421,2]
[311777048,1705385453972,-616.98,0.00022421,2]
[311777049,1705385453983,-485.51298268,0.00022421,2]
[311777050,1705385453993,-518.99872134,0.00022421,2]
[311777051,1705385454003,-666.08,0.00022421,2]
[311777052,1705385454012,-500.0,0.00022421,2]
[311777053,1705385454022,-2309.05,0.00022421,2]
[311777054,1705385454032,-843.87,0.00022421,2]
[311777055,1705385454042,-786.44,0.00022421,2]
[311777056,1705385454053,-507.98,0.00022421,2]
[311777057,1705385454063,-1052.42,0.00022421,2]
[311777058,1705385454073,-500.0,0.00022421,2]
[311777059,1705385454083,-497.66280995,0.00022421,2]
[311777060,1705385454094,-500.0,0.00022421,2]
[311777061,1705385454104,-609.28,0.00022421,2]
[311777062,1705385454114,-326.55763288,0.00022421,2]
[311777063,1705385454124,-748.73,0.00022421,2]
[311777064,1705385454133,-510.53911759,0.00022421,2]
[311777065,1705385454144,-1070.35,0.00022421,2]
[311777066,1705385454154,-2197.55,0.00022421,2]
[311777067,1705385454163,-511.11409913,0.00022421,2]
[311777068,1705385454173,-738.0,0.00022421,2]
[311777069,1705385454182,-585.71,0.00022421,2]
[311777070,1705385454192,-1132.08,0.00022421,2]
[311777071,1705385454202,-500.0,0.00022421,2]
[311777072,1705385454212,-548.78,0.00022421,2]
[311777073,1705385454221,-500.0,0.00022421,2]
[311777074,1705385454231,-500.0,0.00022421,2]
[311777075,1705385454240,-500.0,0.00022421,2]
[311777076,1705385454250,-710.97,0.00022421,2]
[311777077,1705385454260,-1950.06,0.00022421,2]
[311777078,1705385454270,-500.0,0.00022421,2]
[311777079,1705385454279,-500.0,0.00022421,2]
[311777080,1705385454289,-2470.96,0.00022421,2]
[311777081,1705385454300,-675.46,0.00022421,2]
[311777082,1705385454310,-854.68,0.00022421,2]
[311777083,1705385454319,-500.0,0.00022421,2]
[311777084,1705385454330,-500.0,0.00022421,2]
[311777085,1705385454341,-500.0,0.00022421,2]
[311777086,1705385454352,-2733.0,0.00022421,2]
[311777087,1705385454362,-648.43,0.00022421,2]
[311777088,1705385454373,-527.6,0.00022421,2]
[311777089,1705385454383,-500.0,0.00022421,2]
[311777090,1705385454393,-2191.16,0.00022421,2]
[311777091,1705385454402,-4701.54,0.00022421,2]
[311777092,1705385454412,-500.0,0.00022421,2]
[311777093,1705385454422,-2753.67,0.00022421,2]
[311777094,1705385454432,-525.56,0.00022421,2]
[311777095,1705385454441,-553.99,0.00022421,2]
[311777096,1705385454451,-500.0,0.00022421,2]
[311777097,1705385454461,-782.89,0.00022421,2]
[311777098,1705385454471,-799.64,0.00022421,2]
[311777099,1705385454481,-928.53,0.00022421,2]
[311777100,1705385454491,-500.0,0.00022421,2]
[311777101,1705385454501,-500.0,0.00022421,2]
[311777102,1705385454510,-727.37,0.00022421,2]
[311777103,1705385454520,-544.69,0.00022421,2]
[311777104,1705385454530,-513.32,0.00022421,2]
[311777105,1705385454541,-500.0,0.00022421,2]
[311777106,1705385454550,-500.0,0.00022421,2]
[311777107,1705385454560,-514.87,0.00022421,2]
[311777108,1705385454570,-500.0,0.00022421,2]
[311777109,1705385454579,-500.0,0.00022421,2]
[311777110,1705385454589,-500.0,0.00022421,2]
[311777111,1705385454599,-500.0,0.00022421,2]
[311777112,1705385454608,-2138.76,0.00022421,2]
[311777113,1705385454619,-4767.83,0.00022421,2]
[311777114,1705385454628,-943.76,0.00022421,2]
[311777115,1705385454637,-500.0,0.00022421,2]
[311777116,1705385454647,-1867.08,0.00022421,2]
[311777117,1705385454657,-500.0,0.00022421,2]
[311777118,1705385454666,-269.45330703,0.00022421,2]
[311777119,1705385454676,-500.0,0.00022421,2]
[311777120,1705385454685,-919.63,0.00022421,2]
[311777121,1705385454695,-500.0,0.00022421,2]
[311777122,1705385454704,-500.0,0.00022421,2]
[311777123,1705385454715,-500.0,0.00022421,2]
[311777124,1705385454724,-1686.05,0.00022421,2]
[311777125,1705385454734,-500.0,0.00022421,2]
[311777126,1705385454743,-979.81,0.00022421,2]
[311777127,1705385454753,-500.0,0.00022421,2]
[311777128,1705385454762,-500.0,0.00022421,2]
[311777129,1705385454772,-647.86,0.00022421,2]
[311777130,1705385454783,-1166.67,0.00022421,2]
[311777131,1705385454792,-157.97,0.00022421,2]
[311777132,1705385454803,-640.69,0.00022421,2]
[311777133,1705385454813,-500.0,0.00022421,2]
[311777134,1705385454823,-1612.37,0.00022421,2]
[311777135,1705385454833,-500.0,0.00022421,2]
[311777136,1705385454843,-500.0,0.00022421,2]
[311777137,1705385454854,-1019.34,0.00022421,2]
[311777138,1705385454863,-962.84,0.00022421,2]
[311777139,1705385454873,-822.6,0.00022421,2]
[311777140,1705385454883,-500.0,0.00022421,2]
[311777141,1705385454892,-500.0,0.00022421,2]
[311777142,1705385454902,-500.0,0.00022421,2]
[311777143,1705385454911,-2914.16,0.00022421,2]
[311777144,1705385454921,-500.0,0.00022421,2]
[311777145,1705385454930,-500.0,0.00022421,2]
[311777146,1705385454940,-500.0,0.00022421,2]
[311777147,1705385454951,-700.91,0.00022421,2]
[311777148,1705385454961,-500.0,0.00022421,2]
[311777149,1705385454973,-1217.15,0.00022421,2]
[311777150,1705385454983,-518.25,0.00022421,2]
[311777151,1705385454993,-3015.16,0.00022421,2]
[311777152,1705385455003,-813.14,0.00022421,2]
[311777153,1705385455013,-500.0,0.00022421,2]
[311777154,1705385455023,-500.0,0.00022421,2]
[311777155,1705385455033,-1109.58,0.00022421,2]
[311777156,1705385455043,-1048.97,0.00022421,2]
[311777157,1705385455056,-809.47,0.00022421,2]
[311777158,1705385455066,-619.18,0.00022421,2]
[311777159,1705385455077,-500.0,0.00022421,2]
[311777160,1705385455087,-513.04893144,0.00022421,2]
[311777161,1705385455737,-36.41106856,0.00022421,2]
[311777162,1705385455746,-238.19664063,0.00022421,2]
[311777163,1705385455759,-261.80335937,0.00022421,2]
[311777164,1705385455768,-1078.3,0.00022421,2]
[311777165,1705385455778,-504.62,0.00022421,2]
[311777166,1705385455787,-558.37971269,0.00022421,2]
[311777167,1705385455797,-1917.74,0.00022421,2]
[311777168,1705385455806,-819.61,0.00022421,2]
[311777169,1705385455815,-500.0,0.00022421,2]
[311777170,1705385455825,-2228.35,0.00022421,2]
[311777171,1705385455834,-500.0,0.00022421,2]
[311777172,1705385455844,-869.96,0.00022421,2]
[311777173,1705385455854,-500.0,0.00022421,2]
[311777174,1705385455863,-155.68625864,0.00022421,2]
[311777175,1705385455872,-618.53,0.00022421,2]
[311777176,1705385455882,-637.57199328,0.00022421,2]
[311777177,1705385455891,-500.0,0.00022421,2]
[311777178,1705385455900,-500.0,0.00022421,2]
[311777179,1705385455909,-1554.26,0.00022421,2]
[311777180,1705385455919,-500.0,0.00022421,2]
[311777181,1705385455930,-500.0,0.00022421,2]
[311777182,1705385455939,-3178.76278733,0.00022421,2]
[311777183,1705385455952,-955.67721267,0.00022421,2]
[311777184,1705385455962,-2118.76,0.00022421,2]
[311777185,1705385455972,-500.0,0.00022421,2]
[311777186,1705385455981,-617.23,0.00022421,2]
[311777187,1705385455990,-500.0,0.00022421,2]
[311777188,1705385456000,-384.78382588,0.00022421,2]
[311777189,1705385456041,-115.21617412,0.00022421,2]
[311777190,1705385456051,-500.0,0.00022421,2]
[311777191,1705385456061,-500.0,0.00022421,2]
[311777192,1705385456070,-500.0,0.00022421,2]
[311777193,1705385456079,-633.28077288,0.00022421,2]
[311777194,1705385456293,-311.21120683,0.00022421,2]
[311777195,1705385456305,-808.76404495,0.00022421,2]
[311777196,1705385456317,-1036.89397534,0.00022421,2]
[311777197,1705385456328,-2502.21,0.00022421,2]
[311777198,1705385456338,-500.0,0.00022421,2]
[311777199,1705385456347,-1317.65,0.00022421,2]
[311777200,1705385456357,-607.26,0.00022421,2]
[311777201,1705385456366,-500.0,0.00022421,2]
[311777202,1705385456375,-500.0,0.00022421,2]
[311777203,1705385456384,-1928.89,0.00022421,2]
[311777204,1705385456394,-586.35,0.00022421,2]
[311777205,1705385456403,-15873.45,0.00022421,2]
[311777206,1705385456412,-667.46,0.00022421,2]
[311777207,1705385456421,-500.0,0.00022422,2]
[311777208,1705385456430,-718.99,0.00022422,2]
[311777209,1705385456439,-500.0,0.00022422,2]
[311777210,1705385456448,-500.0,0.00022422,2]
[311777211,1705385456458,-500.0,0.00022422,2]
[311777212,1705385456466,-500.0,0.00022422,2]
[311777213,1705385456476,-500.0,0.00022422,2]
[311777214,1705385456484,-700.01,0.00022422,2]
[311777215,1705385456494,-500.0,0.00022422,2]
[311777216,1705385456504,-500.0,0.00022422,2]
[311777217,1705385456513,-500.0,0.00022422,2]
[311777218,1705385456522,-658.82,0.00022422,2]
[311777219,1705385456532,-500.0,0.00022422,2]
[311777220,1705385456541,-500.0,0.00022422,2]
[311777221,1705385456550,-500.0,0.00022422,2]
[311777222,1705385456559,-500.0,0.00022422,2]
[311777223,1705385456568,-500.0,0.00022422,2]
[311777224,1705385456578,-500.0,0.00022422,2]
[311777225,1705385456587,-500.0,0.00022422,2]
[311777226,1705385456596,-500.0,0.00022422,2]
[311777227,1705385456608,-500.0,0.00022422,2]
[311777228,1705385456620,-500.0,0.00022422,2]
[311777229,1705385456629,-500.0,0.00022422,2]
[311777230,1705385456637,-525.32280792,0.00022422,2]
[311777231,1705385456649,-783.45476951,0.00022422,2]
[311777232,1705385456665,-523.22202271,0.00022148,2]
[311777233,1705385456674,-562.19618553,0.00022422,2]
[311777234,1705385457666,-514.29147188,0.00022147,2]
[311777235,1705385457675,-500.0,0.00022147,2]
[311777236,1705385457685,-500.0,0.00022147,2]
[311777237,1705385457694,-500.0,0.00022148,2]
[311777238,1705385457703,-516.8,0.00022421,2]
[311777239,1705385457713,-500.0,0.00022421,2]
[311777240,1705385457722,-221.81623704,0.00022422,2]
[311777241,1705385457731,-500.0,0.00022422,2]
[311777242,1705385457745,-500.0,0.00022422,2]
[311777243,1705385457760,-500.0,0.00022422,2]
[311777244,1705385457776,-500.0,0.00022422,2]
[311777245,1705385457796,-500.0,0.00022422,2]
[311777246,1705385457809,-500.0,0.00022422,2]
[311777247,1705385457818,-502.58,0.00022422,2]
[311777248,1705385457827,-500.0,0.00022422,2]
[311777249,1705385457836,-500.0,0.00022422,2]
[311777250,1705385457844,-500.0,0.00022422,2]
[311777251,1705385457854,-500.0,0.00022422,2]
[311777252,1705385457863,-500.0,0.00022422,2]
[311777253,1705385457872,-500.0,0.00022422,2]
[311777254,1705385457881,-500.0,0.00022422,2]
[311777255,1705385457890,-500.0,0.00022422,2]
[311777256,1705385457898,-500.0,0.00022422,2]
[311777257,1705385457907,-361.07320755,0.00022422,2]
[311777258,1705385457916,-500.0,0.00022422,2]
[311777259,1705385457924,-507.29631433,0.00022422,2]
[311777260,1705385457933,-240.2204935,0.00022422,2]
[311777261,1705385457942,-250.0,0.00022422,2]
[311777262,1705385457950,-500.0,0.00022422,2]
[311777263,1705385457959,-500.0,0.00022422,2]
[311777264,1705385457968,-507.57198793,0.00022422,2]
[311777265,1705385457976,-500.0,0.00022422,2]
[311777266,1705385457985,-500.0,0.00022422,2]
[311777267,1705385457994,-542.85619533,0.00022422,2]
[311777268,1705385458005,-500.0,0.00022422,2]
[311777269,1705385458013,-500.0,0.00022422,2]
[311777270,1705385458022,-533.88,0.00022422,2]
[311777271,1705385458031,-500.0,0.00022422,2]
[311777272,1705385458040,-500.0,0.00022422,2]
[311777273,1705385458049,-500.0,0.00022422,2]
[311777274,1705385458058,-503.79,0.00022422,2]
[311777275,1705385458067,-500.0,0.00022422,2]
[311777276,1705385458076,-500.23,0.00022422,2]
[311777277,1705385458085,-577.785009,0.00022422,2]
[311777278,1705385458093,-506.94014016,0.00022422,2]
[311777279,1705385458103,-500.0,0.00022422,2]
[311777280,1705385458112,-500.0,0.00022422,2]
[311777281,1705385458121,-710.29,0.00022422,2]
[311777282,1705385458130,-500.0,0.00022422,2]
[311777283,1705385458139,-500.0,0.00022422,2]
[311777284,1705385458148,-500.0,0.00022422,2]
[311777285,1705385458157,-500.0,0.00022422,2]
[311777286,1705385458166,-500.0,0.00022422,2]
[311777287,1705385458175,-516.96195441,0.00022422,2]
[311777288,1705385458184,-500.0,0.00022422,2]
[311777289,1705385458193,-500.0,0.00022422,2]
[311777290,1705385458202,-728.97,0.00022422,2]
[311777291,1705385458211,-506.01118317,0.00022422,2]
[311777292,1705385458220,-500.0,0.00022422,2]
[311777293,1705385458229,-209.23183519,0.00022422,2]
[311777294,1705385458238,-500.0,0.00022422,2]
[311777295,1705385458247,-512.06285806,0.00022422,2]
[311777296,1705385458256,-545.84,0.00022422,2]
[311777297,1705385458265,-3138.4,0.00022422,2]
[311777298,1705385458274,-376.30890314,0.00022422,2]
[311777299,1705385458283,-500.0,0.00022422,2]
[311777300,1705385458292,-500.0,0.00022422,2]
[311777301,1705385458301,-656.14,0.00022422,2]
[311777302,1705385458310,-500.0,0.00022422,2]
[311777303,1705385458319,-518.93059789,0.00022422,2]
[311777304,1705385458328,-500.0,0.00022422,2]
[311777305,1705385458337,-768.22,0.00022422,2]
[311777306,1705385458346,-500.0,0.00022422,2]
[311777307,1705385458356,-728.04,0.00022422,2]
[311777308,1705385458365,-513.4620116,0.00022422,2]
[311777309,1705385458374,-500.0,0.00022422,2]
[311777310,1705385458382,-500.0,0.00022422,2]
[311777311,1705385458392,-500.0,0.00022422,2]
[311777312,1705385458400,-553.84,0.00022422,2]
[311777313,1705385458409,-688.67,0.00022422,2]
[311777314,1705385458418,-500.0,0.00022422,2]
[311777315,1705385458427,-500.0,0.00022422,2]
[311777316,1705385458436,-500.0,0.00022422,2]
[311777317,1705385458444,-500.0,0.00022422,2]
[311777318,1705385458453,-500.0,0.00022422,2]
[311777319,1705385458461,-500.0,0.00022422,2]
[311777320,1705385458470,-591.34,0.00022422,2]
[311777321,1705385458479,-505.37832669,0.00022422,2]
[311777322,1705385458489,-673.13,0.00022422,2]
[311777323,1705385458498,-500.0,0.00022422,2]
[311777324,1705385458507,-500.0,0.00022422,2]
[311777325,1705385458516,-500.0,0.00022422,2]
[311777326,1705385458525,-585.08,0.00022422,2]
[311777327,1705385458533,-503.14,0.00022422,2]
[311777328,1705385458542,-500.0,0.00022422,2]
[311777329,1705385458550,-500.0,0.00022422,2]
[311777330,1705385458559,-500.0,0.00022422,2]
[311777331,1705385458568,-500.0,0.00022422,2]
[311777332,1705385458578,-500.0,0.00022422,2]
[311777333,1705385458588,-558.47,0.00022422,2]
[311777334,1705385458597,-500.0,0.00022422,2]
[311777335,1705385458607,-531.28,0.00022422,2]
[311777336,1705385458616,-500.0,0.00022422,2]
[311777337,1705385458625,-500.0,0.00022422,2]
[311777338,1705385458633,-500.0,0.00022422,2]
[311777339,1705385458642,-500.0,0.00022422,2]
[311777340,1705385458651,-500.0,0.00022422,2]
[311777341,1705385458660,-500.0,0.00022422,2]
[311777342,1705385458669,-611.38,0.00022422,2]
[311777343,1705385458678,-500.0,0.00022422,2]
[311777344,1705385458687,-500.0,0.00022422,2]
[311777345,1705385458696,-500.0,0.00022422,2]
[311777346,1705385458704,-611.84,0.00022422,2]
[311777347,1705385458713,-1637.07,0.00022422,2]
[311777348,1705385458722,-500.0,0.00022422,2]
[311777349,1705385458731,-509.2068365,0.00022422,2]
[311777350,1705385458740,-500.0,0.00022422,2]
[311777351,1705385458751,-579.25,0.00022422,2]
[311777352,1705385458760,-500.0,0.00022422,2]
[311777353,1705385458769,-500.0,0.00022422,2]
[311777354,1705385458779,-567.94,0.00022422,2]
[311777355,1705385458787,-750.7,0.00022422,2]
[311777356,1705385458796,-590.29,0.00022422,2]
[311777357,1705385458805,-300.0,0.00022422,2]
[311777358,1705385458813,-500.0,0.00022422,2]
[311777359,1705385458822,-535.78768443,0.00022422,2]
[311777360,1705385458831,-554.01,0.00022422,2]
[311777361,1705385458839,-531.99,0.00022422,2]
[311777362,1705385458848,-500.0,0.00022422,2]
[311777363,1705385458857,-500.0,0.00022422,2]
[311777364,1705385458866,-599.83,0.00022422,2]
[311777365,1705385458875,-500.0,0.00022422,2]
[311777366,1705385458884,-500.0,0.00022422,2]
[311777367,1705385458892,-500.0,0.00022422,2]
[311777368,1705385458901,-500.0,0.00022422,2]
[311777369,1705385458910,-530.72,0.00022422,2]
[311777370,1705385458919,-598.6,0.00022422,2]
[311777371,1705385458928,-500.0,0.00022422,2]
[311777372,1705385458937,-718.24,0.00022422,2]
[311777373,1705385458946,-583.34,0.00022422,2]
[311777374,1705385458954,-500.0,0.00022422,2]
[311777375,1705385458963,-505.60397447,0.00022422,2]
[311777376,1705385458973,-500.0,0.00022422,2]
[311777377,1705385458984,-500.0,0.00022422,2]
[311777378,1705385458993,-500.0,0.00022422,2]
[311777379,1705385459002,-507.81,0.00022422,2]
[311777380,1705385459011,-500.0,0.00022422,2]
[311777381,1705385459022,-500.0,0.00022422,2]
[311777382,1705385459032,-500.0,0.00022422,2]
[311777383,1705385459041,-512.42,0.00022422,2]
[311777384,1705385459051,-500.0,0.00022422,2]
[311777385,1705385459060,-500.0,0.00022422,2]
[311777386,1705385459071,-500.0,0.00022422,2]
[311777387,1705385459081,-500.0,0.00022422,2]
[311777388,1705385459090,-500.0,0.00022422,2]
[311777389,1705385459099,-500.0,0.00022422,2]
[311777390,1705385459110,-500.0,0.00022422,2]
[311777391,1705385459119,-510.38514915,0.00022422,2]
[311777392,1705385459128,-528.03,0.00022422,2]
[311777393,1705385459138,-500.0,0.00022422,2]
[311777394,1705385459148,-521.77,0.00022422,2]
[311777395,1705385459158,-614.53,0.00022422,2]
[311777396,1705385459168,-500.0,0.00022422,2]
[311777397,1705385459178,-500.0,0.00022422,2]
[311777398,1705385459187,-500.0,0.00022422,2]
[311777399,1705385459196,-500.0,0.00022422,2]
[311777400,1705385459204,-500.0,0.00022422,2]
[311777401,1705385459214,-500.0,0.00022422,2]
[311777402,1705385459223,-648.66,0.00022422,2]
[311777403,1705385459232,-500.0,0.00022422,2]
[311777404,1705385459241,-500.0,0.00022422,2]
[311777405,1705385459250,-364.09798948,0.00022422,2]
[311777406,1705385459259,-500.0,0.00022422,2]
[311777407,1705385459269,-500.0,0.00022422,2]
[311777408,1705385459278,-500.0,0.00022423,2]
[311777409,1705385459287,-500.0,0.00022423,2]
[311777410,1705385459296,-500.0,0.00022423,2]
[311777411,1705385459305,-444.88683615,0.00022423,2]
[311777412,1705385459314,-500.0,0.00022423,2]
[311777413,1705385459323,-526.32833956,0.00022423,2]
[311777414,1705385459332,-500.0,0.00022423,2]
[311777415,1705385459341,-1031.73,0.00022423,2]
[311777416,1705385459351,-500.0,0.00022423,2]
[311777417,1705385459471,-575.33,0.00022423,2]
[311777418,1705385459515,-581.93,0.00022423,2]
[311777419,1705385459525,-500.0,0.00022423,2]
[311777420,1705385459534,-1008.36,0.00022423,2]
[311777421,1705385459543,-943.09,0.00022423,2]
[311777422,1705385459552,-794.72,0.00022423,2]
[311777423,1705385459561,-1197.26,0.00022423,2]
[311777424,1705385459571,-500.0,0.00022423,2]
[311777425,1705385459580,-662.61,0.00022423,2]
[311777426,1705385459589,-567.63,0.00022423,2]
[311777427,1705385459598,-1059.88,0.00022423,2]
[311777428,1705385459608,-601.13,0.00022423,2]
[311777429,1705385459617,-693.4,0.00022423,2]
[311777430,1705385459626,-608.26,0.00022423,2]
[311777431,1705385459635,-565.83,0.00022423,2]
[311777432,1705385459644,-872.62,0.00022423,2]
[311777433,1705385459653,-500.0,0.00022423,2]
[311777434,1705385459662,-784.69,0.00022423,2]
[311777435,1705385459671,-567.61,0.00022423,2]
[311777436,1705385459680,-748.92,0.00022423,2]
[311777437,1705385459690,-895.91,0.00022423,2]
[311777438,1705385459699,-536.32933321,0.00022423,2]
[311777439,1705385459709,-531.83,0.00022423,2]
[311777440,1705385459718,-672.24,0.00022423,2]
[311777441,1705385459727,-581.46,0.00022423,2]
[311777442,1705385459737,-1433.83,0.00022423,2]
[311777443,1705385459746,-885.61,0.00022423,2]
[311777444,1705385459755,-983.53,0.00022423,2]
[311777445,1705385459765,-1059.65,0.00022423,2]
[311777446,1705385459774,-799.55,0.00022423,2]
[311777447,1705385459783,-890.62,0.00022423,2]
[311777448,1705385459792,-817.86,0.00022423,2]
[311777449,1705385459802,-3556.98,0.00022423,2]
[311777450,1705385459811,-740.72,0.00022423,2]
[311777451,1705385459821,-648.78,0.00022423,2]
[311777452,1705385459830,-2402.87,0.00022423,2]
[311777453,1705385459839,-568.91,0.00022423,2]
[311777454,1705385459849,-500.0,0.00022423,2]
[311777455,1705385459858,-500.0,0.00022423,2]
[311777456,1705385459867,-500.0,0.00022423,2]
[311777457,1705385459877,-713.16,0.00022423,2]
[311777458,1705385459886,-510.07530011,0.00022423,2]
[311777459,1705385459896,-582.25,0.00022423,2]
[311777460,1705385459905,-861.5,0.00022423,2]
[311777461,1705385459915,-503.25,0.00022423,2]
[311777462,1705385459924,-527.13,0.00022423,2]
[311777463,1705385459933,-500.0,0.00022423,2]
[311777464,1705385459943,-523.83,0.00022423,2]
[311777465,1705385459953,-500.0,0.00022423,2]
[311777466,1705385459963,-1010.67,0.00022423,2]
[311777467,1705385459972,-500.0,0.00022423,2]
[311777468,1705385459982,-520.76,0.00022423,2]
[311777469,1705385459991,-815.32,0.00022423,2]
[311777470,1705385460000,-1100.25,0.00022423,2]
[311777471,1705385460010,-500.0,0.00022423,2]
[311777472,1705385460019,-500.0,0.00022424,2]
[311777473,1705385460029,-500.0,0.00022424,2]
[311777474,1705385460039,-937.12,0.00022424,2]
[311777475,1705385460049,-500.0,0.00022424,2]
[311777476,1705385460059,-531.89,0.00022424,2]
[311777477,1705385460070,-500.0,0.00022424,2]
[311777478,1705385460079,-500.0,0.00022424,2]
[311777479,1705385460089,-500.0,0.00022424,2]
[311777480,1705385460098,-500.0,0.00022424,2]
[311777481,1705385460109,-500.0,0.00022424,2]
[311777482,1705385460119,-500.0,0.00022424,2]
[311777483,1705385460128,-500.0,0.00022424,2]
[311777484,1705385460138,-500.0,0.00022424,2]
[311777485,1705385460147,-621.51577981,0.00022424,2]
[311777486,1705385460157,-500.0,0.00022424,2]
[311777487,1705385460166,-500.0,0.00022424,2]
[311777488,1705385460176,-500.0,0.00022424,2]
[311777489,1705385460186,-458.15,0.00022424,2]
[311777490,1705385460195,-500.0,0.00022424,2]
[311777491,1705385460205,-500.0,0.00022424,2]
[311777492,1705385460216,-730.75,0.000225,2]
[311777493,1705385460226,-500.0,0.000225,2]
[311777494,1705385460237,-12294.16339703,0.000225,2]
[311777495,1705385460247,-1294.57,0.00022543,2]
[311777496,1705385460257,-1454.0,0.00022549,2]
[311777497,1705385460268,-221.0018898,0.0002255,2]
[311777498,1705385460278,-487.38757579,0.0002255,2]
[311777499,1705385460289,-1255.11169177,0.0002255,2]
[311777500,1705385460299,-157.14,0.0002255,2]
[311777501,1705385460309,-159.51,0.00022564,2]
[311777502,1705385460320,-1284.72149989,0.00022594,2]
[311777503,1705385460330,-159.17,0.00022595,2]
[311777504,1705385460340,-250.0,0.00022596,2]
[311777505,1705385460350,-3313.0,0.000226,2]
[311777506,1705385460360,-1560.0,0.000226,2]
[311777507,1705385460372,-150.0,0.00022606,2]
[311777508,1705385460381,-500.0,0.00022626,2]
[311777509,1705385460390,-155.0,0.00022694,2]
[311777510,1705385460399,-500.0,0.00022694,2]
[311777511,1705385460408,-836.6,0.00022694,2]
[311777512,1705385460417,-3098.79,0.00022694,2]
[311777513,1705385460426,-1234.93,0.00022694,2]